bitfinex-derivatives/quotes_BNBF0:USTF0_20250523
["timestamp","ask_amount","ask_price","bid_price","bid_amount"]
[1748040061303,1.54972213,661.88,661.13,1.12490735]
[1748040061507,1.54972213,661.87,661.13,1.12490735]
[1748040061708,1.54972213,661.86,661.13,1.12490735]
[1748040062008,1.54972213,661.85,661.13,1.12490735]
[1748040062204,1.54972213,661.84,661.13,1.12490735]
[1748040062411,1.08167887,661.83,661.15,1.12490735]
[1748040062610,0.30214675,661.93,661.15,1.12490735]
[1748040062816,1.55051262,661.92,661.15,1.12490735]
[1748040063009,1.55051262,661.91,661.15,1.12490735]
[1748040063205,1.55051262,661.9,661.15,1.12490735]
[1748040063412,1.55051262,661.89,661.15,1.12490735]
[1748040063706,1.08220133,661.88,661.15,1.12490735]
[1748040063914,1.08233258,661.87,661.15,1.12490735]
[1748040064113,1.08233258,661.86,661.15,1.12490735]
[1748040064313,1.08233258,661.85,661.15,1.12490735]
[1748040064612,1.08233258,661.84,661.15,1.12490735]
[1748040064815,1.08233258,661.83,661.15,1.12490735]
[1748040065113,0.30214675,661.93,661.15,1.12490735]
[1748040065314,1.55128996,661.92,661.27,1.12490735]
[1748040065514,1.55128996,661.91,661.27,1.12490735]
[1748040065714,1.55153429,661.9,661.27,1.12490735]
[1748040065913,1.55153429,661.89,661.27,1.12490735]
[1748040066209,1.55153429,661.88,661.27,1.12490735]
[1748040066408,1.08298877,661.87,661.27,1.12490735]
[1748040066612,1.08298877,661.86,661.27,1.12490735]
[1748040066811,1.08298877,661.85,661.27,1.12490735]
[1748040067014,1.08298877,661.84,661.27,1.12490735]
[1748040067214,1.08298877,661.83,661.27,1.12490735]
[1748040067514,0.30214675,661.93,661.27,1.12490735]
[1748040067714,1.55183252,661.92,661.27,1.12490735]
[1748040067913,1.55183252,661.91,661.27,1.12490735]
[1748040068106,0.30214675,661.93,661.27,1.12490735]
[1748040068107,1.55183252,661.9,661.27,1.12490735]
[1748040068311,1.55183252,661.89,661.27,1.12490735]
[1748040068513,1.55183252,661.88,661.27,1.12490735]
[1748040068713,1.08312324,661.87,661.27,1.12490735]
[1748040069018,1.08312324,661.86,661.27,1.12490735]
[1748040069215,1.08312324,661.85,661.33,1.12490735]
[1748040069517,1.08312324,661.84,661.33,1.12490735]
[1748040069815,0.30214675,661.93,661.33,1.12490735]
[1748040070014,1.55177262,661.92,661.33,1.12490735]
[1748040070213,1.55177262,661.91,661.33,1.12490735]
[1748040070413,1.55177262,661.9,661.33,1.12490735]
[1748040070611,1.08308283,661.89,661.33,1.12490735]
[1748040070814,1.08308283,661.88,661.33,1.12490735]
[1748040071011,1.08308625,661.87,661.33,1.12490735]
[1748040071215,1.08308625,661.86,661.33,1.12490735]
[1748040071415,1.08308625,661.85,661.33,1.12490735]
[1748040071617,1.08308625,661.84,661.33,1.12490735]
[1748040071917,0.30214675,661.93,661.33,1.12490735]
[1748040072121,1.55175169,661.92,661.36,1.12490735]
[1748040072317,1.55175169,661.91,661.36,1.12490735]
[1748040072617,1.55175169,661.9,661.36,1.12490735]
[1748040072818,1.08310411,661.89,661.36,1.12490735]
[1748040073020,1.08310411,661.88,661.36,1.12490735]
[1748040073217,1.08310411,661.87,661.36,1.12490735]
[1748040073517,1.08310411,661.86,661.36,1.12490735]
[1748040073714,1.08310411,661.85,661.36,1.12490735]
[1748040073914,0.30214675,661.93,661.36,1.12490735]
[1748040074115,1.55180863,661.92,661.36,1.12490735]
[1748040074318,1.55180863,661.91,661.36,1.12490735]
[1748040074517,1.55180863,661.9,661.36,1.12490735]
[1748040074717,1.5518582,661.89,661.36,1.12490735]
[1748040074913,1.08317881,661.88,661.36,1.12490735]
[1748040075118,1.08317881,661.87,661.36,1.12490735]
[1748040075314,1.08317881,661.86,661.36,1.12490735]
[1748040075519,1.08317881,661.85,661.37,1.12490735]
[1748040075726,1.08317881,661.84,661.37,1.12490735]
[1748040075916,0.30214675,661.93,661.37,1.12490735]
[1748040076116,1.55192711,661.92,661.37,1.12490735]
[1748040076322,1.55192711,661.91,661.37,1.12490735]
[1748040076619,1.55202252,661.9,661.37,1.12490735]
[1748040076821,1.55202252,661.89,661.37,1.12490735]
[1748040077023,1.55202252,661.88,661.37,1.12490735]
[1748040077223,1.08329225,661.87,661.37,1.12490735]
[1748040077416,1.08329225,661.86,661.37,1.12490735]
[1748040077619,1.08329225,661.85,661.37,1.12490735]
[1748040077817,1.08329225,661.84,661.37,1.12490735]
[1748040078021,1.08329225,661.83,661.37,1.12490735]
[1748040078223,1.08329225,661.82,661.37,1.12490735]
[1748040078418,0.30214675,661.93,661.37,1.12490735]
[1748040078622,1.55235728,661.92,661.36,1.12490735]
[1748040078818,1.55235728,661.91,661.36,1.12490735]
[1748040079018,1.55235728,661.9,661.36,1.12490735]
[1748040079224,1.55235728,661.89,661.36,1.12490735]
[1748040079528,1.55235728,661.88,661.36,1.12490735]
[1748040079721,1.08327275,661.87,661.36,1.12490735]
[1748040079924,0.30214675,661.93,661.36,1.12490735]
[1748040080121,1.55236523,661.92,661.36,1.12490735]
[1748040080322,1.55236523,661.91,661.36,1.12490735]
[1748040080526,1.55236523,661.9,661.36,1.12490735]
[1748040080728,1.55236523,661.89,661.36,1.12490735]
[1748040081026,1.55236523,661.88,661.36,1.12490735]
[1748040081221,1.08328825,661.87,661.36,1.12490735]
[1748040081525,1.08328825,661.86,661.37,1.12490735]
[1748040081726,1.08328825,661.85,661.37,1.12490735]
[1748040081931,1.08328825,661.84,661.37,1.12490735]
[1748040082130,1.08328825,661.83,661.37,1.12490735]
[1748040082330,1.11581188,661.91,661.37,1.12490735]
[1748040082631,1.55231041,661.9,661.37,1.12490735]
[1748040082830,1.55231041,661.89,661.37,1.12490735]
[1748040083030,1.55231041,661.88,661.37,1.12490735]
[1748040083327,1.08325005,661.87,661.37,1.12490735]
[1748040083536,1.11581188,661.91,661.37,1.12490735]
[1748040083826,1.55229419,661.9,661.37,1.12490735]
[1748040084030,1.55229419,661.89,661.37,1.12490735]
[1748040084229,1.55229419,661.88,661.37,1.12490735]
[1748040084528,1.08323874,661.87,661.37,1.12490735]
[1748040084833,1.08323874,661.86,661.37,1.12490735]
[1748040085029,1.08323874,661.85,661.35,1.12490735]
[1748040085228,1.08323874,661.84,661.35,1.12490735]
[1748040085425,0.30214675,661.93,661.35,1.12490735]
[1748040085627,1.55222735,661.92,661.35,1.12490735]
[1748040085828,1.55222735,661.91,661.35,1.12490735]
[1748040086030,1.55222735,661.9,661.35,1.12490735]
[1748040086229,1.55222735,661.89,661.35,1.12490735]
[1748040086424,1.08319324,661.88,661.35,1.12490735]
[1748040086627,1.08319324,661.87,661.35,1.12490735]
[1748040086830,1.08319324,661.86,661.35,1.12490735]
[1748040087030,1.08319324,661.85,661.35,1.12490735]
[1748040087233,0.30214675,661.93,661.35,1.12490735]
[1748040087434,1.55224517,661.92,661.35,1.12490735]
[1748040087634,1.55224517,661.91,661.35,1.12490735]
[1748040087835,1.55224517,661.9,661.35,1.12490735]
[1748040088135,1.08317001,661.89,661.35,1.12490735]
[1748040088336,1.08317001,661.88,661.37,1.12490735]
[1748040088539,1.08317001,661.87,661.37,1.12490735]
[1748040088736,1.08317001,661.86,661.37,1.12490735]
[1748040088936,1.08317001,661.85,661.37,1.12490735]
[1748040089136,0.30214675,661.93,661.37,1.12490735]
[1748040089437,1.5521935,661.92,661.37,1.12490735]
[1748040089637,1.5521935,661.91,661.37,1.12490735]
[1748040089837,1.5521935,661.9,661.37,1.12490735]
[1748040090035,1.08313396,661.89,661.37,1.12490735]
[1748040090232,1.08313396,661.88,661.37,1.12490735]
[1748040090439,1.08313396,661.87,661.37,1.12490735]
[1748040090635,1.08313396,661.86,661.37,1.12490735]
[1748040090835,1.08310163,661.85,661.37,1.12490735]
[1748040091035,0.30214675,661.93,661.37,1.12490735]
[1748040091331,1.55182549,661.92,661.37,1.12490735]
[1748040091630,1.55182549,661.91,661.37,1.12490735]
[1748040091835,1.55182549,661.9,661.38,1.12490735]
[1748040092033,1.08278003,661.89,661.38,1.12490735]
[1748040092335,1.08278003,661.88,661.38,1.12490735]
[1748040092531,1.08278003,661.87,661.38,1.12490735]
[1748040092734,1.08275904,661.86,661.38,1.12490735]
[1748040092936,1.08275904,661.85,661.38,1.12490735]
[1748040093239,0.30214675,661.93,661.38,1.12490735]
[1748040093539,1.55185863,661.92,661.38,1.12490735]
[1748040093738,1.55185863,661.91,661.38,1.12490735]
[1748040093941,1.55185863,661.9,661.38,1.12490735]
[1748040094140,1.08276685,661.89,661.4,1.12490735]
[1748040094337,1.0827505,661.88,661.4,1.12490735]
[1748040094535,1.0827505,661.87,661.4,1.12490735]
[1748040094738,1.0827505,661.86,661.4,1.12490735]
[1748040094935,1.0827505,661.85,661.4,1.12490735]
[1748040095137,1.11581188,661.92,661.4,1.12490735]
[1748040095337,1.55182531,661.91,661.4,1.12490735]
[1748040095541,1.55182531,661.9,661.4,1.12490735]
[1748040095742,1.08274352,661.89,661.4,1.12490735]
[1748040096041,1.08274352,661.88,661.4,1.12490735]
[1748040096242,1.08274352,661.87,661.4,1.12490735]
[1748040096542,1.08274352,661.86,661.37,1.12490735]
[1748040096735,1.08274352,661.85,661.37,1.12490735]
[1748040096940,0.30214675,661.93,661.37,1.12490735]
[1748040097140,1.551668,661.92,661.37,1.12490735]
[1748040097438,1.551668,661.91,661.37,1.12490735]
[1748040097636,1.551668,661.9,661.37,1.12490735]
[1748040097838,1.08259487,661.89,661.37,1.12490735]
[1748040098040,1.08258041,661.88,661.37,1.12490735]
[1748040098237,1.08258041,661.87,661.37,1.12490735]
[1748040098543,1.08258041,661.86,661.37,1.12490735]
[1748040098742,1.08258041,661.85,661.37,1.12490735]
[1748040098938,0.30214675,661.93,661.37,1.12490735]
[1748040099137,1.55163066,661.92,661.37,1.12490735]
[1748040099336,1.55163066,661.91,661.37,1.12490735]
[1748040099540,1.55163066,661.9,661.37,1.12490735]
[1748040099742,1.08256909,661.89,661.37,1.12490735]
[1748040099937,1.08256909,661.88,661.37,1.12490735]
[1748040100140,1.08256909,661.87,661.37,1.12490735]
[1748040100342,1.08256909,661.86,661.37,1.12490735]
[1748040100543,1.08256909,661.85,661.37,1.12490735]
[1748040100842,0.30214675,661.93,661.37,1.12490735]
[1748040101045,1.55175738,661.92,661.37,1.12490735]
[1748040101244,1.55175738,661.91,661.37,1.12490735]
[1748040101441,1.55175738,661.9,661.37,1.12490735]
[1748040101741,1.08254924,661.89,661.37,1.12490735]
[1748040101944,1.08254924,661.88,661.37,1.12490735]
[1748040102143,1.08254924,661.87,661.37,1.12490735]
[1748040102341,1.08254924,661.86,661.37,1.12490735]
[1748040102546,1.08254924,661.85,661.37,1.12490735]
[1748040102847,0.30214675,661.93,661.37,1.12490735]
[1748040103041,1.55175085,661.92,661.37,1.12490735]
[1748040103243,1.55175085,661.91,661.37,1.12490735]
[1748040103443,1.55175164,661.9,661.37,1.12490735]
[1748040103645,1.08254472,661.89,661.37,1.12490735]
[1748040103843,1.08254472,661.88,661.37,1.12490735]
[1748040104042,1.08254472,661.87,661.37,1.12490735]
[1748040104247,1.08254472,661.86,661.37,1.12490735]
[1748040104447,1.08254472,661.85,661.37,1.12490735]
[1748040104644,1.08254472,661.84,661.37,1.12490735]
[1748040104848,0.30214675,661.93,661.37,1.12490735]
[1748040105047,1.5517844,661.92,661.37,1.12490735]
[1748040105250,1.5517844,661.91,661.37,1.12490735]
[1748040105448,1.5517844,661.9,661.37,1.12490735]
[1748040105743,1.5517844,661.89,661.37,1.12490735]
[1748040105948,1.08256722,661.88,661.36,1.12490735]
[1748040106147,1.08256722,661.87,661.36,1.12490735]
[1748040106348,1.08256722,661.86,661.36,1.12490735]
[1748040106648,1.08256722,661.85,661.36,1.12490735]
[1748040106847,1.08256722,661.84,661.36,1.12490735]
[1748040107044,1.41795863,661.93,661.36,1.12490735]
[1748040107346,1.5519354,661.92,661.36,1.12490735]
[1748040107547,1.5519354,661.91,661.36,1.12490735]
[1748040107748,1.5519354,661.9,661.36,1.12490735]
[1748040108047,1.5519354,661.89,661.36,1.12490735]
[1748040108249,1.08267256,661.88,661.36,1.12490735]
[1748040108448,1.08267256,661.87,661.36,1.12490735]
[1748040108647,1.08267256,661.86,661.36,1.12490735]
[1748040108845,1.08267256,661.85,661.36,1.12490735]
[1748040109046,1.08267256,661.84,661.36,1.12490735]
[1748040109248,1.41795863,661.93,661.36,1.12490735]
[1748040109449,1.11581188,661.91,661.38,1.12490735]
[1748040109646,1.55213121,661.9,661.38,1.12490735]
[1748040109847,1.55213121,661.89,661.38,1.12490735]
[1748040110053,1.08280982,661.88,661.38,1.12490735]
[1748040110251,1.08280982,661.87,661.38,1.12490735]
[1748040110551,1.08280982,661.86,661.38,1.12490735]
[1748040110850,1.08280982,661.85,661.38,1.12490735]
[1748040111045,1.08280982,661.84,661.38,1.12490735]
[1748040111244,1.11581188,661.91,661.38,1.12490735]
[1748040111449,1.55256475,661.9,661.38,1.12490735]
[1748040111645,1.55256475,661.89,661.38,1.12490735]
[1748040111849,1.55256475,661.88,661.38,1.12490735]
[1748040112148,1.0830236,661.87,661.38,1.12490735]
[1748040112346,1.0830236,661.86,661.38,1.12490735]
[1748040112548,1.11581188,661.91,661.38,1.12490735]
[1748040112549,1.0830236,661.85,661.38,1.12490735]
[1748040112749,1.0830236,661.84,661.38,1.12490735]
[1748040112948,1.0830236,661.83,661.38,1.12490735]
[1748040113152,1.11581188,661.91,661.38,1.12490735]
[1748040113351,1.55282512,661.9,661.38,1.12490735]
[1748040113551,1.55282512,661.89,661.38,1.12490735]
[1748040113753,1.55282512,661.88,661.39,1.12490735]
[1748040113955,1.55282512,661.87,661.39,1.12490735]
[1748040114156,1.08326194,661.86,661.39,1.12490735]
[1748040114355,1.08326194,661.85,661.39,1.12490735]
[1748040114551,1.08326194,661.84,661.39,1.12490735]
[1748040114752,1.08326194,661.83,661.39,1.12490735]
[1748040114956,1.08326194,661.82,661.39,1.12490735]
[1748040115156,1.11581188,661.91,661.39,1.12490735]
[1748040115358,1.55299836,661.9,661.39,1.12490735]
[1748040115558,1.55299836,661.89,661.39,1.12490735]
[1748040115854,1.55299836,661.88,661.39,1.12490735]
[1748040116158,1.55327612,661.87,661.39,1.12490735]
[1748040116353,1.08351939,661.86,661.4,1.12490735]
[1748040116559,1.08352976,661.85,661.4,1.12490735]
[1748040116759,1.08352976,661.84,661.4,1.12490735]
[1748040117059,1.08352976,661.83,661.4,1.12490735]
[1748040117259,1.08352976,661.82,661.4,1.12490735]
[1748040117654,1.11581188,661.9,661.4,1.12490735]
[1748040117860,1.55389367,661.89,661.4,1.12490735]
[1748040118166,1.08393234,661.88,661.4,1.12490735]
[1748040118360,1.08393234,661.87,661.4,1.12490735]
[1748040118558,1.08393234,661.86,661.4,1.12490735]
[1748040118759,1.08393234,661.85,661.42,1.12490735]
[1748040118959,1.08419334,661.84,661.42,1.12490735]
[1748040119259,0.30214675,661.93,661.42,1.12490735]
[1748040119466,1.55418156,661.92,661.42,1.12490735]
[1748040119665,1.55418156,661.91,661.42,1.12490735]
[1748040119866,1.55418156,661.9,661.42,1.12490735]
[1748040120065,1.55418156,661.89,661.42,1.12490735]
[1748040120364,1.55418156,661.88,661.42,1.12490735]
[1748040120664,0.30214675,661.93,661.42,1.12490735]
[1748040120665,1.08416433,661.87,661.42,1.12490735]
[1748040120859,1.08416433,661.86,661.43,1.12490735]
[1748040121065,1.08416433,661.85,661.43,1.12490735]
[1748040121265,1.08416433,661.84,661.43,1.12490735]
[1748040121464,1.08416433,661.83,661.43,1.12490735]
[1748040121665,0.30214675,661.93,661.43,1.12490735]
[1748040121860,1.55458759,661.92,661.43,1.12490735]
[1748040122066,1.55458892,661.91,661.43,1.12490735]
[1748040122268,1.55458892,661.9,661.43,1.12490735]
[1748040122567,0.30214675,661.93,660.44,3.6593454]
[1748040122568,1.55458892,661.89,661.45,1.12490735]
[1748040122766,1.55458892,661.88,661.45,1.12490735]
[1748040122966,1.55458892,661.87,661.45,1.12490735]
[1748040123168,1.0844867,661.86,661.45,1.12490735]
[1748040123368,1.0844867,661.85,661.45,1.12490735]
[1748040123568,1.0844867,661.84,661.45,1.12490735]
[1748040123767,1.08466108,661.83,661.45,1.12490735]
[1748040123966,1.41795863,661.93,661.45,1.12490735]
[1748040124266,1.55483575,661.92,661.45,1.12490735]
[1748040124466,1.55483575,661.91,661.45,1.12490735]
[1748040124665,1.55483575,661.9,661.45,1.12490735]
[1748040124864,1.55483575,661.89,661.45,1.12490735]
[1748040125067,1.55483575,661.88,661.45,1.12490735]
[1748040125262,1.55483575,661.87,661.45,1.12490735]
[1748040125463,1.08465974,661.86,661.45,1.12490735]
[1748040125665,1.08458819,661.85,661.44,1.12490735]
[1748040125866,1.08458819,661.84,661.44,1.12490735]
[1748040126066,1.08458819,661.83,661.44,1.12490735]
[1748040126267,1.41795863,661.93,661.44,1.12490735]
[1748040126567,1.55478701,661.92,661.44,1.12490735]
[1748040126768,1.55478701,661.91,661.44,1.12490735]
[1748040126967,1.55478701,661.9,661.44,1.12490735]
[1748040127167,1.55478701,661.89,661.44,1.12490735]
[1748040127368,1.55477522,661.88,661.44,1.12490735]
[1748040127566,1.08458946,661.87,661.44,1.12490735]
[1748040127768,1.08458946,661.86,661.44,1.12490735]
[1748040127970,1.08458946,661.85,661.44,1.12490735]
[1748040128167,1.08458946,661.84,661.44,1.12490735]
[1748040128373,1.08458946,661.83,661.47,1.12490735]
[1748040128573,1.08458946,661.82,661.47,1.12490735]
[1748040128774,1.11581188,661.9,661.47,1.12490735]
[1748040128967,1.5547198,661.89,661.47,1.12490735]
[1748040129168,1.55472303,661.88,661.47,1.12490735]
[1748040129470,1.55472303,661.87,661.47,1.12490735]
[1748040129666,1.08454391,661.86,661.47,1.12490735]
[1748040129868,1.08454391,661.85,661.47,1.12490735]
[1748040130173,1.08454391,661.84,661.47,1.12490735]
[1748040130470,1.08454391,661.83,661.47,1.12490735]
[1748040130774,1.08454391,661.82,661.47,1.12490735]
[1748040130975,1.11581188,661.9,661.47,1.12490735]
[1748040131169,1.55472051,661.89,661.47,1.12490735]
[1748040131371,2.67053239,661.88,661.47,1.12490735]
[1748040131576,1.55472051,661.87,661.47,1.12490735]
[1748040131775,1.08455188,661.86,661.47,1.12490735]
[1748040131972,1.08455188,661.85,661.47,1.12490735]
[1748040132168,1.08455188,661.84,661.47,1.12490735]
[1748040132369,1.08455188,661.83,661.47,1.12490735]
[1748040132568,1.08455188,661.82,661.47,1.12490735]
[1748040132768,1.11581188,661.88,661.47,1.12490735]
[1748040132974,1.55326249,661.87,661.47,1.12490735]
[1748040133169,1.08310639,661.86,661.47,1.12490735]
[1748040133374,1.08310639,661.85,661.47,1.12490735]
[1748040133575,1.08310639,661.84,661.47,1.12490735]
[1748040133773,1.08310639,661.83,661.47,1.12490735]
[1748040134073,1.08310639,661.82,661.47,1.12490735]
[1748040134270,1.11581188,661.88,661.47,1.12490735]
[1748040134469,1.55323983,661.87,661.47,1.12490735]
[1748040134671,1.08308794,661.86,661.45,1.12490735]
[1748040134868,1.08308794,661.85,661.45,1.12490735]
[1748040135069,1.08308794,661.84,661.45,1.12490735]
[1748040135272,1.08308794,661.83,661.45,1.12490735]
[1748040135474,1.08308794,661.82,661.45,1.12490735]
[1748040135672,1.11581188,661.9,661.45,1.12490735]
[1748040135873,1.5532199,661.89,661.45,1.12490735]
[1748040136174,1.5532199,661.88,661.45,1.12490735]
[1748040136371,1.08306902,661.87,661.45,1.12490735]
[1748040136577,1.08306902,661.86,661.45,1.12490735]
[1748040136775,1.08306902,661.85,661.45,1.12490735]
[1748040136975,1.08306902,661.84,661.45,1.12490735]
[1748040137177,1.08306902,661.83,661.45,1.12490735]
[1748040137377,1.11581188,661.9,661.45,1.12490735]
[1748040137578,1.55317794,661.89,661.45,1.12490735]
[1748040137778,1.55317794,661.88,661.45,1.12490735]
[1748040137979,1.55317794,661.87,661.45,1.12490735]
[1748040138177,1.08304804,661.86,661.45,1.12490735]
[1748040138378,1.08304804,661.85,661.45,1.12490735]
[1748040138579,1.08304804,661.84,661.45,1.12490735]
[1748040138779,1.08304804,661.83,661.45,1.12490735]
[1748040139074,1.08304804,661.82,661.45,1.12490735]
[1748040139284,1.11581188,661.92,661.45,1.12490735]
[1748040139484,1.55325034,661.91,661.45,1.12490735]
[1748040139683,1.55325034,661.9,661.45,1.12490735]
[1748040139884,1.55325034,661.89,661.45,1.12490735]
[1748040140185,1.55325034,661.88,661.45,1.12490735]
[1748040140386,1.55325034,661.87,661.45,1.12490735]
[1748040140596,1.55325034,661.86,661.45,1.12490735]
[1748040140787,1.55325034,661.85,661.45,1.12490735]
[1748040140986,1.55325034,661.84,661.45,1.12490735]
[1748040141185,1.55325034,661.83,661.45,1.12490735]
[1748040141381,1.55325034,661.82,661.45,1.12490735]
[1748040141587,1.55325034,661.81,661.45,1.12490735]
[1748040141888,1.55313346,661.8,661.45,1.12490735]
[1748040142081,1.55313346,661.79,661.45,1.12490735]
[1748040142282,1.55313346,661.78,661.45,1.12490735]
[1748040142485,1.55313346,661.77,661.45,1.12490735]
[1748040142685,1.55313346,661.76,661.45,1.12490735]
[1748040142887,1.0831075,661.75,661.45,1.12490735]
[1748040143087,1.0831075,661.74,661.45,1.12490735]
[1748040143290,1.0831075,661.73,661.45,1.12490735]
[1748040143582,1.082767,661.72,661.45,1.12490735]
[1748040143788,1.11581188,661.86,661.24,1.12490735]
[1748040144088,1.55242814,661.85,661.24,1.12490735]
[1748040144287,1.55242814,661.84,661.24,1.12490735]
[1748040144489,1.55242814,661.83,661.24,1.12490735]
[1748040144688,1.55242814,661.82,661.24,1.12490735]
[1748040144884,1.55242814,661.81,661.24,1.12490735]
[1748040145089,1.55242814,661.8,661.24,1.12490735]
[1748040145290,1.55237022,661.79,661.24,1.12490735]
[1748040145487,1.55237022,661.78,661.24,1.12490735]
[1748040145689,1.08255222,661.77,661.24,1.12490735]
[1748040145886,1.08255222,661.76,661.24,1.12490735]
[1748040146086,1.08255222,661.75,661.24,1.12490735]
[1748040146291,1.11581188,661.86,661.26,1.12490735]
[1748040146491,1.55215468,661.85,661.26,1.12490735]
[1748040146691,1.55215468,661.84,661.26,1.12490735]
[1748040146891,1.55215468,661.83,661.26,1.12490735]
[1748040147192,1.55215468,661.82,661.26,1.12490735]
[1748040147389,1.55215468,661.81,661.26,1.12490735]
[1748040147591,1.08236421,661.8,661.26,1.12490735]
[1748040147792,1.08236421,661.79,661.26,1.12490735]
[1748040147987,1.08236421,661.78,661.26,1.12490735]
[1748040148290,1.08236421,661.77,661.26,1.12490735]
[1748040148488,1.08236421,661.76,661.26,1.12490735]
[1748040148692,1.11581188,661.87,661.29,1.12490735]
[1748040148894,1.55195418,661.86,661.29,1.12490735]
[1748040149195,1.55195418,661.85,661.29,1.12490735]
[1748040149394,1.55195418,661.84,661.29,1.12490735]
[1748040149594,1.55195418,661.83,661.29,1.12490735]
[1748040149794,1.11581188,661.87,661.29,1.12490735]
[1748040149795,1.55195418,661.82,661.29,1.12490735]
[1748040150095,1.55195418,661.81,661.29,1.12490735]
[1748040150296,1.08218796,661.8,661.29,1.12490735]
[1748040150490,1.08218796,661.79,661.29,1.12490735]
[1748040150693,1.08208519,661.78,661.29,1.12490735]
[1748040150890,1.08208519,661.77,661.29,1.12490735]
[1748040151191,1.08208519,661.76,661.29,1.12490735]
[1748040151391,1.11581188,661.87,661.29,1.12490735]
[1748040151593,1.5515815,661.86,661.29,1.12490735]
[1748040151795,1.5515815,661.85,661.29,1.12490735]
[1748040151991,1.5515815,661.84,661.3,1.12490735]
[1748040152193,1.5515815,661.83,661.3,1.12490735]
[1748040152398,1.55156474,661.82,661.3,1.12490735]
[1748040152598,1.55156474,661.81,661.3,1.12490735]
[1748040152798,1.0820241,661.8,661.3,1.12490735]
[1748040152995,1.0820241,661.79,661.3,1.12490735]
[1748040153298,1.0820241,661.78,661.3,1.12490735]
[1748040153498,1.0820241,661.77,661.3,1.12490735]
[1748040153698,1.0820241,661.76,661.3,1.12490735]
[1748040153901,1.11581188,661.85,661.3,1.12490735]
[1748040154198,1.55159278,661.84,661.3,1.12490735]
[1748040154401,1.55159278,661.83,661.3,1.12490735]
[1748040154602,1.55159278,661.82,661.3,1.12490735]
[1748040154901,1.55159278,661.81,661.29,1.12490735]
[1748040155094,1.08204312,661.8,661.29,1.12490735]
[1748040155298,1.08204312,661.79,661.29,1.12490735]
[1748040155498,1.08204312,661.78,661.29,1.12490735]
[1748040155701,1.08204312,661.77,661.29,1.12490735]
[1748040155903,1.08204312,661.76,661.29,1.12490735]
[1748040156098,1.11581188,661.85,661.29,1.12490735]
[1748040156401,1.55145888,661.84,661.29,1.12490735]
[1748040156695,1.55145888,661.83,661.29,1.12490735]
[1748040156894,1.55145888,661.82,661.29,1.12490735]
[1748040157097,1.55145888,661.81,661.29,1.12490735]
[1748040157294,1.08195005,661.8,661.29,1.12490735]
[1748040157500,1.08195005,661.79,661.29,1.12490735]
[1748040157700,1.11581188,661.83,661.31,1.12490735]
[1748040157995,1.55135316,661.82,661.31,1.12490735]
[1748040158295,1.55135316,661.81,661.31,1.12490735]
[1748040158500,1.08187661,661.8,661.31,1.12490735]
[1748040158701,1.08187661,661.79,661.31,1.12490735]
[1748040158896,1.08187661,661.78,661.31,1.12490735]
[1748040159095,1.08187661,661.77,661.31,1.12490735]
[1748040159301,1.08187661,661.76,661.31,1.12490735]
[1748040159501,1.11581188,661.83,661.31,1.12490735]
[1748040159696,1.55125738,661.82,661.31,1.12490735]
[1748040159901,1.55125738,661.81,661.31,1.12490735]
[1748040160095,1.0818094,661.8,661.31,1.12490735]
[1748040160297,1.0818094,661.79,661.31,1.12490735]
[1748040160498,1.0818094,661.78,661.31,1.12490735]
[1748040160795,1.0818094,661.77,661.31,1.12490735]
[1748040160999,1.11581188,661.83,661.31,1.12490735]
[1748040161199,1.55120142,661.82,661.31,1.12490735]
[1748040161400,1.08177107,661.81,661.31,1.12490735]
[1748040161603,1.11581188,661.83,661.31,1.12490735]
[1748040161604,1.08177107,661.8,661.31,1.12490735]
[1748040161902,1.08177107,661.79,661.31,1.12490735]
[1748040162105,1.08177107,661.78,661.31,1.12490735]
[1748040162405,1.11581188,661.83,661.31,1.12490735]
[1748040162704,1.55115389,661.82,661.31,1.12490735]
[1748040162999,1.11581188,661.83,661.31,1.12490735]
[1748040163302,1.55116313,661.82,661.31,1.12490735]
[1748040163501,1.08174077,661.81,661.31,1.12490735]
[1748040163700,1.11581188,661.83,661.31,1.12490735]
[1748040163701,1.08174077,661.8,661.31,1.12490735]
[1748040163901,1.08174077,661.79,661.31,1.12490735]
[1748040164101,1.08174077,661.78,661.31,1.12490735]
[1748040164301,1.08174077,661.77,661.31,1.12490735]
[1748040164499,1.11581188,661.83,661.31,1.12490735]
[1748040164702,1.55110907,661.82,661.31,1.12490735]
[1748040164999,1.08170592,661.81,661.29,1.12490735]
[1748040165202,1.08170592,661.8,661.29,1.12490735]
[1748040165399,1.08170592,661.79,661.29,1.12490735]
[1748040165604,1.08170592,661.78,661.29,1.12490735]
[1748040165805,1.08170592,661.77,661.29,1.12490735]
[1748040166002,1.11581188,661.84,661.29,1.12490735]
[1748040166305,1.55061531,661.83,661.29,1.12490735]
[1748040166506,1.55061531,661.82,661.29,1.12490735]
[1748040166703,1.5505809,661.81,661.29,1.12490735]
[1748040166906,1.08166155,661.8,661.29,1.12490735]
[1748040167102,1.08166155,661.79,661.29,1.12490735]
[1748040167306,1.08166155,661.78,661.29,1.12490735]
[1748040167504,1.08166155,661.77,661.29,1.12490735]
[1748040167704,1.08166155,661.76,661.29,1.12490735]
[1748040167909,1.11581188,661.84,661.29,1.12490735]
[1748040168109,2.66637318,661.83,661.28,1.12490735]
[1748040168308,1.5505613,661.82,661.28,1.12490735]